bitfinex/quotes_ETHUSD_20241223
["timestamp","ask_amount","ask_price","bid_price","bid_amount"]
[1734958215024,2.97503,3361.3,3360.7,0.7926]
[1734958215317,2.9754,3360.9,3360.3,0.8163]
[1734958215750,2.9756,3360.7,3360.3,0.8163]
[1734958216308,0.8089,3361.0,3360.3,0.8163]
[1734958216651,2.97567,3360.6,3360.1,1.23083048]
[1734958216866,2.97551,3360.8,3360.1,1.23083048]
[1734958217060,2.97551,3360.8,3360.0,0.7934]
[1734958217235,0.37842,3360.9,3360.0,0.7934]
[1734958217419,2.97559,3360.7,3360.0,0.7934]
[1734958218550,0.416291,3360.7,3360.0,0.7934]
[1734958218758,2.97566,3360.6,3360.0,0.7934]
[1734958220833,0.37842,3360.9,3360.0,0.7934]
[1734958221154,2.97561,3360.7,3360.0,0.7934]
[1734958221857,0.37842,3360.9,3360.0,0.7934]
[1734958222059,2.97578,3360.5,3360.0,0.7934]
[1734958222376,3.273358,3360.5,3360.0,0.7934]
[1734958223484,0.7918,3360.3,3359.5,0.7745]
[1734958223648,2.97621,3360.0,3359.5,0.7745]
[1734958223983,2.97635,3359.9,3359.5,0.7745]
[1734958224185,2.97637,3359.8,3359.4,1.23083048]
[1734958224682,2.97647,3359.7,3359.4,1.23083048]
[1734958224887,0.595236,3359.9,3359.4,1.23083048]
[1734958225182,2.9761,3360.1,3359.4,1.23083048]
[1734958225385,2.15551472,3360.7,3359.5,0.7845]
[1734958225386,3.0,3360.6,3359.5,0.7845]
[1734958225549,3.35387,3360.9,3359.9,2.97627]
[1734958225760,0.7667,3361.4,3360.0,0.81425855]
[1734958225959,3.74169,3361.4,3360.0,0.7845]
[1734958226293,2.97542,3360.9,3360.0,0.7845]
[1734958226455,2.97524,3361.1,3360.0,0.7845]
[1734958226840,3.0,3361.3,3360.2,0.7558]
[1734958227078,3.74173,3361.4,3360.3,3.35205776]
[1734958227257,3.74173,3361.4,3360.4,0.7558]
[1734958227459,2.97503,3361.4,3360.4,0.7558]
[1734958228072,0.8032,3361.7,3360.4,0.7558]
[1734958228283,2.9748,3361.6,3360.7,0.7558]
[1734958228452,0.27735232,3361.7,3360.7,0.7558]
[1734958228654,2.97477,3361.6,3360.7,0.7558]
[1734958229872,0.27735232,3361.7,3360.7,0.7558]
[1734958231361,0.27735232,3361.7,3360.7,3.73135]
[1734958231701,3.25204232,3361.7,3360.8,0.373135]
[1734958231851,3.25204232,3361.7,3360.7,0.7558]
[1734958233091,0.27735232,3361.7,3360.7,0.7558]
[1734958233257,2.97478,3361.6,3360.7,0.7558]
[1734958233457,2.97488,3361.5,3360.7,0.7558]
[1734958234278,2.97498,3361.4,3360.7,0.7558]
[1734958234457,0.27735232,3361.7,3360.7,0.7558]
[1734958234657,2.97477,3361.6,3360.7,0.95446305]
[1734958235107,0.05,3362.0,3361.1,0.7913]
[1734958235400,2.97468,3361.7,3361.1,0.7913]
[1734958236273,3.52451,3361.9,3361.1,0.7913]
[1734958236474,0.05,3362.0,3361.2,0.0297514]
[1734958236696,0.05,3362.0,3361.1,3.76643]
[1734958237005,0.05,3362.4,3361.5,0.7713]
[1734958237209,3.02399,3362.5,3361.5,3.74615]
[1734958237407,0.05,3362.5,3361.5,3.74615]
[1734958238171,2.97406,3362.4,3361.5,0.7713]
[1734958238725,2.97428,3362.2,3361.5,0.7713]
[1734958239280,3.02405,3362.5,3361.5,0.7713]
[1734958239481,3.41544217,3362.4,3361.5,0.7713]
[1734958243623,2.97415,3362.3,3361.5,0.7713]
[1734958247249,2.97427,3362.2,3361.5,0.7713]
[1734958247451,3.41547217,3362.4,3361.5,0.7713]
[1734958248043,2.97417,3362.3,3361.5,0.7713]
[1734958248241,0.34655522,3362.2,3361.5,0.7713]
[1734958251564,0.49138217,3362.4,3361.5,0.7713]
[1734958252160,2.97426,3362.2,3361.5,0.7713]
[1734958252365,4.24215217,3362.4,3361.5,0.7713]
[1734958252564,3.46545217,3362.4,3361.5,0.7713]
[1734958253384,2.97415,3362.3,3361.5,0.7713]
[1734958253675,3.38078038,3362.3,3361.5,0.7713]
[1734958255091,0.40663038,3362.3,3361.5,0.7713]
[1734958255308,0.55,3362.3,3361.5,0.7713]
[1734958255589,2.97435,3362.1,3361.5,0.7713]
[1734958256294,2.97442,3362.0,3361.5,0.7713]
[1734958260911,2.97462,3361.8,3361.5,0.7713]
[1734958261061,2.97504,3361.3,3361.1,0.752]
[1734958261260,3.272614,3361.3,3360.8,1.98283048]
[1734958261459,0.297504,3361.3,3360.8,1.98283048]
[1734958261660,0.05,3362.2,3360.9,0.7561]
[1734958261957,3.5244,3362.1,3361.2,0.7561]
[1734958262396,0.05,3362.2,3361.2,3.73122]
[1734958262579,3.02424,3362.2,3361.2,3.73122]
[1734958262744,0.05,3362.2,3361.4,0.7975]
[1734958263389,3.8155,3362.7,3361.6,0.7975]
[1734958263390,0.65802859,3362.5,3361.6,0.7975]
[1734958264087,0.65802859,3362.5,3361.6,3.77222]
[1734958264845,3.63203859,3362.5,3361.6,0.7975]
[1734958265473,3.63203859,3362.5,3361.6,1.174735]
[1734958265953,2.15551472,3362.4,3361.6,0.7975]
[1734958266291,2.97415,3362.3,3361.6,0.7975]
[1734958266464,2.97432,3362.2,3361.6,0.7975]
[1734958266793,2.97426,3362.2,3361.6,0.7975]
[1734958268382,2.97436,3362.1,3361.6,0.7975]
[1734958268578,3.49234747,3362.1,3361.6,0.7975]
[1734958269295,2.97458,3361.9,3361.6,0.7975]
[1734958269484,3.49238747,3362.1,3361.6,0.7975]
[1734958269736,0.51798747,3362.1,3361.6,0.7975]
[1734958269996,2.97447,3362.0,3361.6,0.7975]
[1734958274304,0.05,3362.3,3361.6,0.7975]
[1734958274509,2.97449,3362.0,3361.6,0.7975]
[1734958274666,2.97451,3361.9,3361.6,0.7975]
[1734958275117,2.97436,3362.1,3361.6,0.7975]
[1734958275409,0.87039947,3362.1,3361.6,0.7975]
[1734958275616,2.97425,3362.2,3361.6,0.7975]
[1734958275768,2.97437,3362.1,3361.6,0.7975]
[1734958276174,0.05,3362.3,3361.6,0.7975]
[1734958276396,0.05,3362.3,3361.3,1.99633048]
[1734958276397,2.15551472,3362.0,3361.3,1.99633048]
[1734958276622,3.52495,3361.4,3361.3,1.23083048]
[1734958276791,4.46760247,3361.4,3361.3,1.23083048]
[1734958277320,6.5253,3361.0,3360.9,1.23844983]
[1734958277614,9.45211472,3361.0,3360.9,1.23844983]
[1734958277787,10.69482919,3361.0,3360.9,1.23844983]
[1734958278193,10.69482919,3361.0,3360.9,9.83e-06]
[1734958278602,7.76801447,3361.0,3360.9,9.83e-06]
[1734958278992,2.9757,3360.6,3359.5,4.83672588]
[1734958279187,3.7054,3360.6,3359.5,4.83672588]
[1734958279591,2.97586,3360.4,3359.6,0.7655]
[1734958280521,0.7297,3360.6,3359.6,0.7655]
[1734958280817,0.55,3360.5,3359.6,0.7655]
[1734958281182,2.97619,3360.0,3359.6,0.7655]
[1734958282317,2.97603,3360.2,3359.6,0.7655]
[1734958282526,0.55,3360.3,3359.6,0.7655]
[1734958282678,1.3290777,3360.3,3359.6,0.7655]
[1734958283281,3.48459242,3360.3,3359.3,0.8137]
[1734958283632,2.97671,3359.5,3359.2,0.31082963]
[1734958283925,0.55,3359.9,3359.0,0.8137]
[1734958284419,3.76471,3360.1,3359.0,0.8137]
[1734958284926,3.76471,3360.1,3359.0,3.79074]
[1734958285128,3.76471,3360.1,3359.1,0.379074]
[1734958286213,3.52621,3360.0,3359.0,0.8137]
[1734958288538,0.55,3360.0,3359.0,0.8137]
[1734958288711,2.9763,3359.9,3359.0,0.8137]
[1734958288914,0.8213,3359.5,3358.3,0.818]
[1734958289236,2.15551472,3358.5,3358.1,1.23451525]
[1734958289432,2.15551472,3358.8,3358.2,0.818]
[1734958289726,0.81085747,3359.5,3358.2,0.818]
[1734958289727,0.8142,3359.3,3358.2,0.818]
[1734958289939,0.8142,3359.6,3358.6,2.97739]
[1734958290232,0.55,3359.8,3358.7,0.84947275]
[1734958290382,2.97618,3360.1,3359.0,0.8197]
[1734958290584,2.15551472,3360.0,3359.0,0.8197]
[1734958291432,2.97645,3359.8,3359.0,0.8197]
[1734958291585,0.55,3359.9,3359.0,0.8197]
[1734958292698,2.97655,3359.6,3359.0,0.8197]
[1734958293096,0.55,3359.2,3358.3,0.8323]
[1734958293342,2.97689,3359.2,3358.3,0.8323]
[1734958293496,2.97718,3358.9,3358.3,0.8323]
[1734958293851,0.55,3358.8,3358.0,0.8223]
[1734958294013,2.97781,3358.2,3358.0,0.8223]
[1734958294209,0.297781,3358.2,3357.4,0.8223]
[1734958294434,2.97797,3358.0,3357.4,0.8223]
[1734958294647,0.297781,3358.2,3357.4,0.8223]
[1734958294843,2.97813,3357.9,3357.4,0.8223]
[1734958295159,2.97832,3357.6,3357.4,0.8223]
[1734958295669,2.9784,3357.5,3356.3,5.13492472]
[1734958295812,2.97836,3357.6,3356.4,3.80166]
[1734958296038,2.97836,3357.6,3356.4,0.8223]
[1734958296329,2.97836,3357.6,3356.4,3.80167]
[1734958296528,2.70551472,3358.1,3356.4,3.80167]
[1734958296529,2.15551472,3357.5,3356.4,0.8223]
[1734958296846,0.29856147,3357.4,3356.5,2.97922]
[1734958297046,0.29856147,3357.4,3356.4,0.8223]
[1734958297630,0.29856147,3357.4,3356.5,2.97923]
[1734958298871,0.29856147,3357.4,3356.4,0.8223]
[1734958299016,3.0,3358.1,3356.6,0.798]
[1734958299365,2.74109761,3358.4,3357.5,0.798]
[1734958299366,2.15551472,3358.4,3357.5,0.798]
[1734958300555,5.15551472,3358.4,3357.5,0.798]
[1734958301276,2.97789,3358.1,3357.2,0.7623]
[1734958301435,2.97769,3358.3,3357.2,0.7623]
[1734958301770,0.84309857,3358.1,3357.2,0.7623]
[1734958301966,0.84309857,3358.1,3357.2,3.7409]
[1734958302116,0.84309857,3358.1,3357.2,0.7623]
[1734958302318,2.97805,3357.9,3357.2,0.7623]
[1734958302517,3.82098857,3358.1,3357.2,0.7623]
[1734958302763,0.71187696,3358.0,3357.2,0.7623]
[1734958305322,2.97823,3357.7,3357.2,0.7623]
[1734958305857,0.71187696,3358.0,3357.2,0.7623]
[1734958307274,3.68988696,3358.0,3357.2,0.7623]
[1734958308674,0.71187696,3358.0,3357.2,0.7623]
[1734958308826,0.58451917,3357.9,3357.2,0.7623]
[1734958309384,2.9778,3358.2,3357.2,3.74096]
[1734958309673,2.97778,3358.2,3357.2,0.7623]
[1734958311069,0.55,3358.3,3357.2,0.7623]
[1734958311371,2.97794,3358.1,3357.2,0.7623]
[1734958312772,2.97799,3358.0,3357.2,0.7623]
[1734958313072,0.297799,3357.9,3357.2,0.7623]
[1734958313424,0.8021,3357.8,3356.6,0.7969]
[1734958313674,0.55,3357.6,3356.6,0.7969]
[1734958313979,2.97859,3357.3,3356.6,0.7969]
[1734958314152,2.97843,3357.5,3356.6,0.7969]
[1734958314353,3.32919147,3357.5,3356.6,0.7969]
[1734958314913,2.9787,3357.2,3356.6,0.7969]
[1734958315086,2.97876,3357.2,3356.6,0.7969]
[1734958315855,2.9787,3357.2,3356.6,0.7969]
[1734958316069,3.31164615,3357.2,3356.6,0.7969]
[1734958316290,2.97892,3357.0,3356.6,0.7969]
[1734958316633,2.97901,3356.9,3356.6,0.7969]
[1734958316890,2.93221472,3357.1,3356.0,0.7764]
[1734958317040,2.97885,3357.0,3356.0,0.7764]
[1734958317239,0.92227709,3356.9,3356.0,0.7764]
[1734958317472,2.97894,3356.9,3356.0,0.7764]
[1734958317783,0.33294615,3357.2,3355.9,2.97981]
[1734958317784,0.33294615,3357.2,3356.1,0.7764]
[1734958317951,3.52834,3357.6,3356.5,0.7764]
[1734958318153,0.55,3357.6,3356.5,0.7764]
[1734958318355,0.55,3357.6,3356.2,3.0]
[1734958318356,0.7767,3358.2,3357.1,2.97874]
[1734958318567,0.59097347,3358.2,3357.2,0.7764]
[1734958318885,2.97788,3358.1,3357.2,0.7764]
[1734958319372,0.59097347,3358.2,3357.2,0.7764]
[1734958320657,0.59097347,3358.2,3357.2,3.75503]
[1734958320959,2.15551472,3358.4,3357.0,0.7764]
[1734958321264,2.15551472,3358.4,3356.7,0.59342029]
[1734958321265,2.97778,3358.3,3357.4,0.7764]
[1734958321584,2.97801,3358.0,3357.4,0.7764]
[1734958321787,2.97781,3358.2,3357.4,0.7764]
[1734958324142,2.97797,3358.0,3357.4,0.7764]
[1734958324344,3.330767,3358.0,3357.4,0.7764]
[1734958325990,2.97805,3357.9,3357.4,0.7764]
[1734958326202,2.97815,3357.8,3357.4,0.7764]
[1734958326371,0.8209,3357.9,3357.0,0.7695]
[1734958326558,2.9783,3357.7,3357.0,0.7695]
[1734958326755,0.55,3357.7,3357.0,0.7695]
[1734958327782,2.97853,3357.4,3357.0,0.7695]
[1734958327945,2.97834,3357.6,3357.0,0.7695]
[1734958329589,2.97834,3357.6,3356.5,2.97922]
[1734958329590,2.97887,3357.0,3356.5,0.7638]
[1734958329739,0.297887,3356.9,3356.5,0.7638]
[1734958330165,2.97887,3357.0,3356.5,0.7638]
[1734958330380,2.97869,3357.2,3356.5,0.7638]
[1734958330793,2.97877,3357.1,3356.5,0.7638]
[1734958331382,3.7771,3357.4,3356.5,0.7638]
[1734958331598,2.9788,3357.1,3356.5,0.7638]
[1734958331986,2.97902,3356.9,3356.5,0.7638]
[1734958332922,2.97914,3356.7,3356.5,0.7638]
[1734958333267,2.9792,3356.6,3355.4,2.98026]
[1734958333472,2.94491472,3356.9,3355.4,0.785]
[1734958333667,2.9799,3355.9,3355.4,0.785]
[1734958334081,5.13504472,3356.3,3355.4,0.785]
[1734958334280,2.97967,3356.1,3355.4,0.785]
[1734958334573,2.15551472,3356.0,3355.3,1.23451525]
[1734958334802,2.15551472,3356.0,3355.1,0.785]
[1734958334803,2.98012,3355.6,3355.1,0.785]
[1734958335010,0.298012,3355.5,3355.1,0.785]
[1734958335403,2.98003,3355.7,3355.1,0.785]
[1734958335919,0.8216,3356.6,3355.1,0.785]
[1734958336074,3.0,3356.4,3355.5,0.8087]
[1734958336277,3.0,3356.4,3355.0,2.15551472]
[1734958336278,5.47589472,3356.9,3355.6,0.8087]
[1734958336612,2.97922,3356.6,3355.8,0.8087]
[1734958337271,2.97933,3356.5,3355.8,0.8087]
[1734958337831,0.55,3356.7,3355.8,0.8087]
[1734958338004,2.97912,3356.7,3355.8,0.8087]
[1734958339146,0.55,3356.9,3355.8,0.8087]
[1734958339641,2.97905,3356.8,3355.8,0.8087]
[1734958339810,3.39108741,3356.8,3355.8,0.8087]
[1734958342645,0.41203741,3356.8,3355.8,3.78855]
[1734958343592,1.3823,3356.7,3355.8,0.8087]
[1734958343798,3.0,3356.6,3355.8,0.8087]
[1734958343993,2.9793,3356.5,3355.8,0.8087]
[1734958344194,0.41203741,3356.8,3355.8,3.7886]
[1734958344398,0.41203741,3356.8,3355.8,2.9799]
[1734958344640,0.41203741,3356.8,3355.9,0.8018]
[1734958345098,2.97906,3356.8,3355.9,0.8018]
[1734958346945,1.42164629,3357.1,3355.9,0.8018]
[1734958347151,2.9793,3356.5,3355.9,0.8018]
[1734958348229,2.97935,3356.5,3355.9,0.8018]
[1734958348547,2.97951,3356.3,3355.9,0.8018]
[1734958348695,0.352951,3356.2,3355.3,0.8018]
[1734958349354,2.97983,3355.9,3355.3,0.8018]
[1734958350144,0.8323,3355.7,3354.7,2.03631525]
[1734958350354,0.55,3355.6,3354.7,2.03631525]
[1734958350522,2.98041,3355.3,3354.7,2.03631525]
[1734958350850,2.98041,3355.3,3354.7,0.8018]
[1734958351617,2.98009,3355.6,3354.7,0.8018]
[1734958351940,0.71066043,3355.6,3354.7,0.8018]
[1734958352139,2.97999,3355.8,3354.7,0.8018]
[1734958352462,2.97999,3355.8,3354.3,3.0]
[1734958352463,2.97999,3355.8,3354.9,0.8018]
[1734958352598,0.55,3355.9,3355.0,2.98059]
[1734958352797,3.5295,3356.3,3355.1,2.98053]
[1734958353032,5.13471472,3356.7,3355.3,2.98027]
[1734958353033,2.9793,3356.5,3355.3,2.98027]
[1734958353248,3.81144,3356.7,3355.6,2.98009]
[1734958353401,2.97914,3356.7,3355.7,2.97996]
[1734958354324,2.97895,3356.9,3355.8,2.97989]
[1734958355224,0.55,3356.8,3355.8,2.97989]
[1734958355625,2.97902,3356.8,3355.8,2.97989]
[1734958355827,3.415152,3356.8,3355.8,2.97989]
[1734958356536,0.436132,3356.8,3355.7,0.8018]
[1734958356724,2.97912,3356.7,3355.7,0.8018]
[1734958357658,2.97912,3356.7,3355.7,3.78178]
[1734958357822,0.55,3356.8,3355.7,0.8018]
[1734958358453,3.55,3357.0,3356.1,0.8126]
[1734958358935,3.5289,3357.0,3356.1,0.8126]
[1734958359138,0.55,3357.1,3356.2,2.97954]
[1734958359322,3.0,3357.2,3356.2,2.97954]
[1734958361223,2.97868,3357.2,3356.2,2.97954]
[1734958361434,2.97886,3357.0,3356.1,0.8126]
[1734958362804,2.15551472,3357.3,3356.1,0.8126]
[1734958363007,7.12413147,3357.2,3356.1,3.79222]
[1734958363210,2.97879,3357.1,3356.1,3.79222]
[1734958365856,2.97887,3357.0,3356.1,0.8126]
[1734958366769,4.14543147,3357.2,3356.1,0.8126]
[1734958366926,2.97843,3357.5,3356.1,0.8126]
[1734958367118,3.0,3357.4,3356.6,0.7791]
[1734958367316,2.97843,3357.5,3356.6,0.7791]
[1734958367976,0.55,3357.5,3356.6,0.7791]
[1734958368274,2.15551472,3357.4,3356.6,0.7791]
[1734958368571,3.3078674,3357.3,3356.6,0.7791]
[1734958369181,2.97867,3357.2,3356.6,0.7791]
[1734958371204,0.3292574,3357.3,3356.6,0.7791]
[1734958371375,2.97879,3357.1,3356.6,0.7791]
[1734958373170,2.97887,3357.0,3356.6,0.7791]
[1734958373376,2.9792,3356.6,3355.8,1.23451525]
[1734958373548,2.97965,3356.1,3355.9,1.23451525]
[1734958373748,2.97973,3356.1,3355.9,1.23451525]
[1734958374250,2.97973,3356.0,3355.9,1.23451525]
[1734958374773,2.97973,3356.0,3355.4,0.7694]
[1734958375617,2.97959,3356.2,3355.4,0.7694]
[1734958375785,0.55,3356.6,3355.4,0.7694]
[1734958375786,2.97983,3355.9,3355.4,0.7694]
[1734958376223,2.97919,3356.7,3355.4,0.7694]
[1734958376523,2.9796,3356.2,3355.6,0.8152]
[1734958377377,0.55,3356.8,3355.6,0.8152]
[1734958377378,2.97911,3356.7,3355.6,0.8152]
[1734958377572,2.97996,3355.8,3355.6,0.8152]
[1734958378520,5.13462472,3356.7,3355.6,0.8152]
[1734958378521,2.15551472,3356.7,3355.6,0.8152]
[1734958378689,2.98,3355.7,3355.6,0.8152]
[1734958379596,2.97962,3356.2,3355.6,0.8152]
[1734958380313,2.97968,3356.1,3355.6,0.8152]
[1734958380807,2.97941,3356.4,3355.6,0.8152]
[1734958380996,2.97922,3356.6,3355.6,0.7706]
[1734958381194,9.07647468,3356.9,3355.7,2.97997]
[1734958381195,3.0,3356.9,3355.7,2.97997]
[1734958381392,2.97903,3356.8,3355.8,0.7706]
[1734958381826,2.97887,3357.0,3355.9,0.7724]
[1734958382029,2.97887,3357.0,3356.1,0.7724]
[1734958382376,2.97869,3357.2,3356.2,2.97954]
[1734958382576,2.47589472,3357.3,3356.3,0.7724]
[1734958382787,2.97885,3357.0,3356.3,0.7724]
[1734958384210,2.9789,3357.0,3356.3,0.7724]
[1734958385830,0.29789,3357.0,3356.3,0.7724]
[1734958386031,2.97929,3356.5,3356.3,0.7724]
[1734958386231,2.97938,3356.4,3356.3,0.7724]
[1734958386464,2.97938,3356.4,3356.0,0.7753]
[1734958386590,0.29789,3357.0,3356.0,0.7753]
[1734958386791,2.97973,3356.0,3355.9,1.23451525]
[1734958386993,2.97973,3356.0,3355.7,0.7753]
[1734958387507,2.97963,3356.2,3355.7,0.7753]
[1734958387836,2.97962,3356.2,3355.7,0.7753]
[1734958387991,0.55,3356.5,3355.7,0.7753]
[1734958388190,2.97986,3355.9,3355.7,0.7753]
[1734958388935,0.772,3356.2,3355.1,0.7753]
[1734958389105,2.9801,3355.6,3355.1,0.7753]
[1734958390040,3.332295,3356.4,3355.0,1.23451525]
[1734958390041,3.24789472,3356.6,3355.7,0.7753]
[1734958390284,2.47589472,3356.6,3355.9,0.7753]
[1734958390408,2.47589472,3356.6,3355.9,1.15381456]
[1734958390600,2.47589472,3356.6,3356.0,0.7753]
[1734958390998,2.97894,3356.9,3356.0,0.7753]
[1734958392139,2.97855,3357.4,3356.1,0.7753]
[1734958392337,2.97858,3357.3,3356.1,0.7753]
[1734958392647,2.9797,3356.1,3355.8,2.00981525]
[1734958392943,2.97929,3356.5,3355.8,2.00981525]
[1734958393153,2.97964,3356.2,3355.9,1.23451525]
[1734958393315,2.97973,3356.0,3355.9,1.23451525]
[1734958394241,2.97973,3356.0,3355.5,0.7753]
[1734958395016,2.97955,3356.3,3355.5,0.7753]
[1734958395365,2.97982,3356.0,3355.5,0.7753]
[1734958395714,2.97987,3355.9,3355.5,0.7753]
[1734958397059,2.97964,3356.2,3355.5,0.7753]
[1734958397555,2.97967,3356.1,3355.5,0.7753]
[1734958397881,3.332637,3356.1,3355.5,0.7753]
[1734958398363,5.47589472,3356.7,3355.5,0.7753]
[1734958398513,2.97964,3356.1,3355.5,0.7753]
[1734958399668,2.9798,3356.0,3355.5,0.7753]
[1734958401366,2.97957,3356.2,3355.5,0.7753]
[1734958401540,2.97968,3356.1,3355.5,0.7753]
[1734958402745,2.97981,3356.0,3355.5,0.7753]
[1734958402947,0.55,3356.6,3355.5,0.7753]
[1734958403138,0.79121481,3356.5,3355.5,0.7753]
[1734958403342,2.97993,3355.8,3355.5,0.7753]
[1734958403528,2.97982,3355.9,3355.5,0.7753]
[1734958403857,5.13515472,3356.1,3355.2,0.8304]
[1734958404055,2.98053,3355.1,3354.8,0.8304]
[1734958405130,2.98018,3355.5,3354.8,0.8304]
[1734958405326,2.98046,3355.2,3354.8,0.8304]
[1734958406061,2.98056,3355.1,3354.8,0.8304]
[1734958406258,2.98063,3355.0,3354.8,0.8304]
[1734958406460,2.98082,3354.8,3354.0,0.8072]
[1734958407562,2.9805,3355.2,3354.0,0.8072]
[1734958407563,2.98089,3354.7,3354.0,0.8072]
[1734958407760,2.98089,3354.7,3354.0,1.01137153]
[1734958408147,2.15551472,3355.3,3354.0,1.01137153]
[1734958408494,2.981,3354.6,3354.0,0.8072]
[1734958410748,2.9808,3354.9,3354.0,0.8072]
[1734958411146,3.53044,3355.2,3354.0,0.8072]
[1734958411459,2.98087,3354.8,3354.0,0.8072]
[1734958411801,0.7594,3354.7,3354.0,0.8072]
[1734958411979,0.7594,3354.7,3353.2,1.86011588]
[1734958411980,2.15551472,3354.4,3353.5,0.7581]
[1734958412145,2.98163,3353.9,3353.5,0.7581]
[1734958412349,2.98124,3354.3,3353.5,0.7581]
[1734958412650,2.98162,3353.9,3353.5,0.7581]
[1734958412957,0.81367547,3354.2,3353.6,0.02852814]
[1734958412958,2.98169,3353.8,3353.6,0.02852814]
[1734958413385,0.81367547,3354.2,3353.5,0.7581]
[1734958413553,3.79501547,3354.2,3353.5,0.7581]
[1734958413754,2.98134,3354.2,3353.5,0.7581]
[1734958413964,0.55,3354.5,3353.6,0.02852814]
[1734958414171,2.98098,3354.6,3353.6,0.02852814]
[1734958414368,2.98116,3354.4,3353.6,0.02852814]
[1734958414580,2.98096,3354.7,3353.7,0.7556]
[1734958414789,2.98096,3354.7,3353.8,0.37957738]
[1734958414984,2.98096,3354.7,3353.9,0.7556]
[1734958415388,2.98096,3354.7,3354.0,0.02847652]
[1734958415870,3.0,3354.9,3354.0,0.02847652]
[1734958416058,0.55,3354.8,3354.0,0.02847652]
[1734958416258,2.98135,3354.2,3354.0,0.02847652]
[1734958416511,2.9813,3354.3,3354.0,0.02847652]
[1734958416717,2.98114,3354.5,3354.0,0.02847652]
[1734958417059,3.63256147,3354.7,3354.0,0.02847652]
[1734958417290,2.98111,3354.5,3354.0,0.02847652]
[1734958418589,2.98117,3354.4,3354.0,0.02847652]
[1734958418788,5.96641472,3355.0,3354.0,0.02847652]
[1734958418789,2.98142,3354.1,3354.0,0.02847652]
[1734958419176,0.7713,3354.3,3353.4,0.8156]
[1734958419586,2.98153,3354.0,3353.5,0.02787921]
[1734958420083,1.146544,3354.3,3353.5,0.02787921]
[1734958420269,0.55,3354.5,3353.5,0.02787921]
[1734958420973,2.98139,3354.2,3353.5,0.02787921]
[1734958421813,2.98143,3354.1,3353.5,0.02787921]
[1734958422770,1.15821583,3354.5,3353.5,0.02787921]
[1734958423126,2.98182,3353.7,3353.5,0.02787921]
[1734958423423,2.86357778,3354.4,3353.5,0.02787921]
[1734958423583,2.86357778,3354.4,3352.4,2.15551472]
[1734958423584,0.55,3354.0,3352.4,0.7509]
[1734958423915,2.98189,3353.6,3352.7,0.7509]
[1734958424269,2.97714999,3353.6,3352.8,0.02754782]
[1734958424471,2.97714999,3353.6,3352.9,0.7509]
[1734958424801,2.98168,3353.9,3353.0,0.027522]
[1734958425007,2.9817,3353.8,3353.0,0.027522]
[1734958425222,2.9818,3353.7,3353.0,0.027522]
[1734958426027,2.98224,3353.2,3353.0,0.027522]
[1734958426521,2.98224,3353.2,3352.9,0.7509]
[1734958426676,0.7886,3353.5,3352.3,0.7627]
[1734958426908,2.98232,3353.1,3352.4,0.02759947]
[1734958427307,2.98252,3352.9,3352.4,0.02759947]
[1734958428755,2.98235,3353.1,3352.4,0.02759947]
[1734958429069,2.98128,3354.3,3352.4,0.02759947]
[1734958429070,0.55,3353.7,3352.5,0.8084]
[1734958429360,0.55,3353.7,3352.7,0.8084]
[1734958429503,2.98197,3353.5,3352.7,1.19028736]
[1734958429705,2.98197,3353.5,3352.8,0.02754782]
[1734958430334,0.55,3353.7,3352.9,0.7527]
[1734958430501,2.98181,3353.7,3352.9,0.7527]
[1734958430723,2.98181,3353.7,3353.0,0.027522]
[1734958431251,2.98181,3353.7,3352.9,0.7527]
[1734958431459,2.98181,3353.7,3353.1,0.02750909]
[1734958431621,2.98181,3353.7,3353.0,0.401057]
[1734958431805,2.98181,3353.7,3353.2,0.02749618]
[1734958432008,2.98181,3353.7,3352.9,0.7527]
[1734958432009,0.55,3354.0,3353.1,0.02750909]
[1734958432234,0.55,3354.0,3351.9,5.13880472]
[1734958432235,4.35464,3353.4,3353.3,0.02748327]
[1734958432444,3.53213,3353.3,3353.2,0.02749618]
[1734958432664,2.98247,3353.0,3352.4,0.7645]
[1734958432860,2.98223,3353.2,3352.4,0.7645]
[1734958433153,2.98205,3353.4,3352.6,0.7604]
[1734958433527,2.98205,3353.4,3352.7,0.02756073]
[1734958433732,2.98205,3353.4,3352.6,0.7604]
[1734958434244,2.98205,3353.4,3352.7,0.02756073]
[1734958434615,2.98205,3353.4,3352.6,0.7604]
[1734958434940,3.55,3353.7,3352.7,0.02756073]
[1734958435146,2.98187,3353.6,3352.8,0.7879]
[1734958435309,2.97271472,3353.8,3352.8,1.16772507]
[1734958435655,2.98221,3353.3,3352.9,0.02753491]
[1734958435813,2.98209,3353.4,3352.9,0.02753491]
[1734958436013,3.53181,3353.7,3352.9,0.02753491]
[1734958436252,2.98213,3353.3,3352.8,0.7879]
[1734958436408,2.98213,3353.3,3353.0,0.027522]
[1734958436610,2.98213,3353.3,3352.9,0.02753491]
[1734958436812,2.98222,3353.2,3353.1,0.02750909]
[1734958437063,2.98231,3353.1,3353.0,0.02708606]
[1734958437230,2.98256,3352.9,3352.2,0.7561]
[1734958437555,2.98256,3352.9,3352.3,0.02717646]
[1734958437906,2.45372772,3353.3,3352.3,0.02717646]
[1734958438110,0.58846367,3353.3,3352.2,0.7561]
[1734958438366,0.58846367,3353.3,3352.4,0.8092]
[1734958438653,2.98232,3353.1,3352.4,0.8092]
[1734958438852,2.98232,3353.1,3352.5,0.02715063]
[1734958440021,2.98195,3353.5,3352.5,0.02715063]
[1734958440227,2.98239,3353.1,3352.5,0.02715063]
[1734958440455,2.98253,3352.9,3352.5,0.02715063]
[1734958440675,2.98238,3353.1,3352.5,0.02715063]